Cogmind - Beta 16 @@@ ROGUE MODE // 2025.11.16 @ 15:43:55 // Winter2019/RPGLIKE Player: Jaegerpls Result: Destroyed by as-19329 with Assembled Blade Performance ------------- Evolutions (0) 0 Regions Visited (0) 0 Robots Destroyed (7) 35 Value Destroyed (94) 94 Prototype IDs (0) 0 Alien Tech Used (0) 0 Bonus (0) 0 TOTAL SCORE: 129 Bonus ------- None Cogmind --------- Core Integrity 0/600 Matter 300/300 Energy 226/250 System Corruption 0% Temperature Cool (0) Movement Rolling (100) Location -11/Scrapyard Parts ------- > --- POWER (1) -------- Ion Engine > --- PROPULSION (2) --- Compact Wheel Compact Wheel > --- UTILITY (3) ------ Improved Terrain Scanner > --- WEAPON (2) ------- EM Pulse Gun Small Laser > --- INVENTORY (1) ---- (None) Peak State ------------ > --- POWER ------------ Ion Engine > --- PROPULSION ------- Compact Wheel Compact Wheel > --- UTILITY ---------- Improved Terrain Scanner Improved Terrain Scanner > --- WEAPON ----------- EM Pulse Gun Small Laser > --- INVENTORY -------- Improved Terrain Scanner [Rating: 11] Favorites ----------- Power Ion Engine Engine Ion Engine Propulsion Compact Wheel Wheel Compact Wheel Utility Improved Terrain Scanner Device Improved Terrain Scanner Weapon EM Pulse Gun Energy Gun EM Pulse Gun Build | -11 ------- Run | Yrd Slots Evolved 4 | 4 Power . | . Propulsion 1 | 1 Utility 2 | 2 Weapon 1 | 1 Parts Attached 7 | 7 Power 1 | 1 Engine 1 | 1 Core . | . Reactor . | . Propulsion 2 | 2 Treads . | . Leg . | . Wheel 2 | 2 Hover . | . Flight . | . Utility 2 | 2 Device 2 | 2 Storage . | . Processor . | . Hackware . | . Protection . | . Artifact . | . Weapon 2 | 2 Energy Gun 2 | 2 Energy Cannon . | . Ballistic Gun . | . Ballistic Cannon . | . Launcher . | . Special Weapon . | . Impact Weapon . | . Slashing Weapon . | . Piercing Weapon . | . Special Melee Weapon . | . Unidentified Prototypes . | . Parts Lost . | . Power . | . Propulsion . | . Utility . | . Weapon . | . Highest Loss Streak . | . To Critical Strikes . | . Average Backups . | . Power . | . Propulsion . | . Utility . | . Weapon . | . Tool/Special . | . Unused Backups 1 | 1 Power . | . Propulsion . | . Utility 1 | 1 Weapon . | . Tool/Special . | . Average Slot Usage (%) . | . Peak Build Rating 11 | 11 Average Rating 7 | 7 On Entrance . | . Avg Prop Armor Cover (%) . | . Naked Turns . | . Heaviest Build 9 | 9 Greatest Support 32 | 32 Greatest Overweight (x) 2 | 2 Average Overweight (x) . | . Largest Inventory Capacity 1 | 1 Average Capacity 1 | 1 Most Carried 1 | 1 Average Carried . | . Final Capacity 1 | 1 Final Carried . | . Class Distribution -------------------- None Dominant Class ---------------- None Resources | -11 ----------- Run | Yrd Matter Collected 270 | 270 Remotely . | . Salvage Created 206 | 206 Parts 15 | 15 Haulers Intercepted . | . Recyclers Shooed . | . Parts Field Recycled . | . Retrieved Matter . | . Parts Self-Destructed . | . Prevented . | . Parts Restored . | . Kills | -11 ------- Run | Yrd Combat Hostiles Destroyed 2 | 2 Guns 2 | 2 Classes Destroyed 4 | 4 Tunneler 5 | 5 Recycler 1 | 1 Demolisher 1 | 1 Assembled 1 | 1 Best Kill Streak 4 | 4 Combat Bots Only 1 | 1 Max Kills in Single Turn 1 | 1 Gunslinging . | . Exploded . | . Melee . | . Uniques/NPCs Destroyed . | . Combat | -11 -------- Run | Yrd Hostile Shots Fired 37 | 37 Missed 4 | 4 Hits 33 | 33 Melee 8 | 8 Projectile 25 | 25 AOE 8 | 8 Damage Taken 753 | 753 Core 617 | 617 Absorbed by Shields . | . Redirected to Core 467 | 467 Core Remaining (%) . | . Volleys Fired 24 | 24 Largest 2 | 2 Hottest 80 | 80 Shots Fired 48 | 48 Gun 48 | 48 Cannon . | . Launcher . | . Special . | . Kinetic . | . Thermal 24 | 24 Explosive . | . Electromagnetic 24 | 24 Robot Hit Streak 6 | 6 Robot Miss Streak 5 | 5 Penetration Max . | . Secondary Targets . | . Shots Hit Robots 27 | 27 Core Hits 11 | 11 Critical Kills . | . Critical Parts Destroyed . | . Critical Strikes . | . Melee Attacks . | . Impact . | . Slashing . | . Piercing . | . Sneak Attacks . | . Combat Hostiles . | . Follow-up Attacks . | . Damage Inflicted 372 | 372 Guns 328 | 328 Cannons . | . Explosions 44 | 44 Melee . | . Ramming . | . Kinetic . | . Thermal 191 | 191 Explosive . | . Electromagnetic 181 | 181 Impact . | . Slashing . | . Piercing . | . Highest Corruption . | . Average Corruption . | . Corruption Purged . | . Corruption Blocked . | . Overload Shots . | . Overflow Damage 24 | 24 Projectiles . | . Explosions 24 | 24 Melee . | . Knockbacks . | . Impact . | . Kinetic . | . Secondary . | . Self-Inflicted Damage . | . Shots . | . Rammed . | . Targets Rammed . | . Kicked . | . Crushed . | . Highest Temperature . | . Average Temperature . | . Received Heat Transfer 20 | 20 Siege Activations . | . Martial Activations . | . Shielding Activations . | . Robots Disrupted . | . Combat Hostiles . | . Robots Corrupted . | . Combat Hostiles . | . Parts Fried . | . Impact Corruptions . | . Robots Melted . | . Combat Hostiles . | . Parts Melted . | . Heat Transferred 375 | 375 Parts Sabotaged . | . Parts Stolen . | . Parts Stripped . | . Power Chain Reactions 1 | 1 Alert | -11 ------- Run | Yrd Maximum Alert Level . | . Low Security (%) 100 | 100 Level 1 . | . Level 2 . | . Level 3 . | . Level 4 . | . Level 5 . | . High Security . | . Max Security . | . Peak Influence 20 | 20 Initial . | . Average . | . Influence Increases 50 | 50 Destroy 0b10 Robot/C 20 | 20 Destroy 0b10 Robot/NC 30 | 30 Influence Decreases 33 | 33 Time Decay 33 | 33 Squads Dispatched . | . Investigation . | . Extermination . | . Reinforcement . | . Assault . | . Garrison . | . Intercept . | . Searches Triggered . | . Construction Impeded . | . Haulers Reinforced . | . Active Scanning Responses . | . Cargo Convoy Interrupts . | . Stealth | -11 --------- Run | Yrd Distress Signals . | . Communications Jammed . | . Distress Signals . | . Times Spotted 32 | 32 Peak Tracking Total 22 | 22 Tactical Retreats 1 | 1 Traps | -11 ------- Run | Yrd Traps Triggered . | . Indirectly . | . Trap Hack Attempts . | . Triggered . | . Disarmed . | . Reprogrammed . | . Reused . | . Traps Extracted . | . Installed . | . Triggered . | . Machines | -11 ---------- Run | Yrd Machines Disabled . | . Max in Single Turn . | . Machines Repaired . | . Machines Dismantled . | . Machines Sabotaged . | . Overloaded Fab Kills . | . Hacking | -11 --------- Run | Yrd Machines Accessed . | . Terminals . | . Fabricators . | . Repair Stations . | . Recycling Units . | . Scanalyzers . | . Garrison Access . | . Total Hacks . | . Successful . | . Failed . | . Catastrophic . | . Database Lockouts . | . Manual . | . Terminals . | . Fabricators . | . Repair Stations . | . Recycling Units . | . Scanalyzers . | . Garrison Access . | . Terminal Hacks . | . Fabricator Hacks . | . Repair Station Hacks . | . Recycling Unit Hacks . | . Scanalyzer . | . Garrison Access Hacks . | . Unauthorized Hacks . | . Terminals . | . Fabricators . | . Repair Stations . | . Recycling Units . | . Scanalyzers . | . Garrison Access . | . Data Cores Recovered . | . Used . | . Hacking Detections . | . Full Trace Events . | . Feedback Events . | . Feedback Blocked . | . Robot Schematics Acquired . | . Robots Built . | . Authchips . | . Time . | . Total Robot Build Rating . | . Part Schematics Acquired . | . Parts Built . | . Authchips . | . Time . | . Total Part Build Rating . | . Part Studies Acquired . | . Parts Repaired . | . Time . | . Parts Recycled . | . Recycled Matter . | . Retrieved Matter . | . Retrieved Components . | . Parts Scanalyzed . | . Part Schematics Acquired . | . Parts Damaged . | . Bothacking | -11 ------------ Run | Yrd Used RIF Installer . | . Robots Hacked . | . Non-combat . | . Combat . | . Robot Hacks Applied . | . Relay Couplers Released . | . Fabnet Peak Effective % . | . Robots Rewired . | . Allies Hacked . | . Hacks Repelled . | . Allies | -11 -------- Run | Yrd Total Allies . | . Largest Group . | . Highest-Rated Group . | . Highest-Rated Ally . | . Total Orders . | . Ally Attacks . | . Total Damage . | . Kills . | . Allies Corrupted . | . Allies Melted . | . Intel | -11 ------- Run | Yrd Active Infowar (turns) 1544 | 1544 Terrain 1544 | 1544 Robot Analysis Total . | . Derelict Logs Recovered . | . Drone Launches . | . Drone Recoveries . | . Exploration | -11 ------------- Run | Yrd Turns Passed 1621 | 1621 Spaces Moved 327 | 327 Core 8 | 8 Treads . | . Legs . | . Wheels 319 | 319 Hover . | . Flight . | . Fastest Speed 50 | 50 Average Speed 100 | 100 Slowest Speed 150 | 150 Overloaded Moves . | . Propulsion Burnouts . | . Robots Hopped . | . Potential Cave-ins . | . Cave-ins Triggered . | . Exploration Rate (%) 35 | 35 Regions Visited . Branch Regions . Pre-discovered Areas . | . Known Exits Taken . | . Unknown Exits Taken . | . Scrap Searched . | . Spaces Dug . | . Terrain Destroyed 4 | 4 Melee . | . Projectile . | . AOE 4 | 4 Terrain Rammed . | . Walls Destroyed . | . Machines Disabled . | . Actions | -11 --------- Run | Yrd Total 1573 | 1573 Wait 1212 | 1212 Move 327 | 327 Hop . | . Pick Up 1 | 1 Fast Attach 7 | 7 Attach . | . Detach . | . Swap . | . Drop 2 | 2 Fire 24 | 24 Melee . | . Ram . | . Kick . | . Crush . | . Escape Stasis . | . Rewire . | . Trap . | . Miscellaneous . | . Route ------- -11/Scrapyard (discovered 1 exit: [*Mat]) History --------- Turn | Location | Event 1 | -11/Scrapyard | Upgraded with Propulsion slot (x1) 1 | -11/Scrapyard | Upgraded with Utility slot (x2) 1 | -11/Scrapyard | Upgraded with Weapon slot (x1) 9 | -11/Scrapyard | Discovered new exit (range 16) 1552 | -11/Scrapyard | Assembled infested the area 1604 | -11/Scrapyard | Core integrity fell below 50% 1616 | -11/Scrapyard | Core integrity fell below 20% 1622 | -11/Scrapyard | Destroyed by as-19329 with Assembled Blade Last Messages --------------- 01580_ as-80591 destroyed. 01580_ as-13425 destroyed. 01584_ The unstable cave ceiling collapses. 01584_ as-58429 destroyed. 01584_ T-07 Excavator is excavating. 01585_ The unstable cave ceiling collapses. 01593_ as-89768 destroyed. 01595_ as-39097 destroyed. 01597_ as-56439 destroyed. 01597_ as-52576 destroyed. 01597_ as-18215 destroyed. 01598_ The unstable cave ceiling collapses. 01598_ D-53 Grenadier knocked back. 01600_ The unstable cave ceiling collapses. 01601_ as-44835 destroyed. 01601_ D-53 Grenadier destroyed. 01602_ The unstable cave ceiling collapses. 01605_ D-53 Grenadier destroyed. 01606_ The unstable cave ceiling collapses. 01622_ as-01041 destroyed. Map ----- +----------------------------------------------------+ | | | | | | | | | | | | | | | | | | | | | ?????????????????????????#??###??????????????????? | | ?????????????????????###??##??#??????????????????? | | ?????????????????#?#????###??????????????????????? | | ???????????????#?????##????#????##?#?????????????? | | ?????????????????????????####?#?####?????????????? | | ????????????????###?#########?#???#??????????????? | | ????????????#?##??#### "## #?##?????????????????? | | ??????????????###?### ? " ######??????????????? | | ????????????##?###?## " ####?###????????????? | | ????????????#?####### " ######?##?#?????????? | | ?????????############# " ########?#??????????? | | ???????????########### " ########?##?????????? | | ????????##?########### ? #######??#?##?????????? | | ??????????##############a ############?#?????????? | | ??????#?################a###############?????????? | | ?????#??################%@###############????????? | | ???##?##################% ##############?#???????? | | ???#?################## ##################??#??? | | ??############### # a ################??#????? | | ??##?############ ###################????? | | ?################ ###################????? | | ?############### ####################???? | | ####?############ ###############?###??? | | ################ # ################?##?? | | #?#??############ # #############?#####?? | | ?################ # % ## #############?? | | ################# ##############? | | ################### # # # ##############?#? | | ?################ ## # ###############?? | | #?######### # ##############?#? | | ?##?###### # ###############?? | | ####### # ###############?? | | ########## # ### # #########? | | ##?####### # ########## | | ########## # % # ########## | | #################### ########## | | #################### # ########## | | #?################## # ############ | | #?################## # # ################# | | #################### #### # ########### | +----------------------------------------------------+ Best States ------------- Heat Dissipation 31 Energy Generation 10 Energy Capacity 250 Matter Stores 300 Matter Capacity 300 Sight Range 16 Robot Scan Range 4 Terrain Scan Range 16 Terrain Scan Density 310 Evasion (%) 40 Item Schematics ----------------- None Robot Schematics ------------------ None Fabricated ------------ Nothing Repaired ---------- Nothing Studied --------- None Alien Tech Used ----------------- None Achievements -------------- Curiosity Killed The Cat Hunted Challenges ------------ None RPGLIKE | -11 --------- Run | Yrd Levels Raised . | . XP Earned 3100 | 3100 XP Spent 2995 | 2995 Upgrades 11 | 11 Propulsion Slot 1 | 1 Utility Slot 2 | 2 Weapon Slot 1 | 1 Heat Dissipation 1 | 1 Inventory Capacity 1 | 1 Sensor Range 2 | 2 Terrain Scan Density 3 | 3 Protomatter Created . | . Protomatter Decayed . | . Game ------ Seed MetafieldAmuletRecalibrator Manual? 0 Play Time 00:09:12 Cumulative 55.7 hours Start 2025.11.16 @ 15:39:05 End 2025.11.16 @ 15:43:55 Sessions 0 Manual Loads 0 Difficulty Rogue Special Mode Winter2019/RPGLIKE Game No. 55 Rogue 55 Adventurer 0 Explorer 0 Win Type - Total 0 Types 0/0/0/0/0/0/0/0/0/0 Lore% 51 Gallery% 34 Achievement% 32 Wizard Run 0 Options --------- Layout 0 ASCII 0 Keyboard 0 Movement Mouse Keybinds 0 Fullscreen 2 Font 24/Smallcaps Map View 76x50 Zoom Use 0% Tactical HUD 1 Map Filters NONE Filters NONE Steam 1 RUN: b4a3530a-4b6b-4556-86fe-918aff5d080f